fUSD/lending_fUSD_20240904
["ID","MTS","AMOUNT","RATE_DAILY","PERIOD"]
[337165495,1725467432639,-1078.09317374,0.00013999,5]
[337165496,1725467432648,-195.62232327,0.00013999,2]
[337165497,1725467432657,-239.1380164,0.00013999,2]
[337165498,1725467432666,-160.13222013,0.00013999,2]
[337165499,1725467432675,-7204.3870695,0.00013999,2]
[337165500,1725467432684,-11450.6860044,0.00013999,2]
[337165501,1725467432693,-13622.1184606,0.00013999,2]
[337165502,1725467432704,-13264.9042431,0.00013999,2]
[337165503,1725467432713,-134117.7891963,0.00013999,2]
[337165504,1725467432723,-187947.79486862,0.00014,2]
[337165505,1725467432734,-3094.63215291,0.00014,2]
[337165506,1725467432778,-2871.78515676,0.00014,2]
[337165507,1725467432789,-3753.76120749,0.00014,2]
[337165508,1725467432800,-2233.16988502,0.00014,2]
[337165509,1725467432811,-10808.08059513,0.00014,2]
[337165510,1725467432823,-676.1,0.00014,2]
[337165511,1725467432833,-1245.568807,0.00014,2]
[337165512,1725467432844,-24730.95610758,0.00014,2]
[337165513,1725467432867,-85627.43529804,0.00014,2]
[337165514,1725467432877,-732.10144154,0.00014,2]
[337165515,1725467432888,-346869.90416492,0.00014,2]
[337165516,1725467432898,-6794.68702231,0.00014,2]
[337165517,1725467432907,-569.32276551,0.00014,2]
[337165518,1725467432917,-20427.0,0.00014,2]
[337165519,1725467432926,-1377.4109,0.00014,2]
[337165520,1725467432935,-194.118148,0.00014,2]
[337165521,1725467432945,-851.2685,0.00014,2]
[337165522,1725467432956,-2331.6036,0.00014,2]
[337165523,1725467432965,-1347.3129,0.00014,2]
[337165524,1725467432975,-250.0,0.00014009,2]
[337165525,1725467432984,-267.025,0.00014009,2]
[337165526,1725467432993,-216.0,0.00014009,2]
[337165527,1725467433002,-151.614,0.00014009,2]
[337165528,1725467433011,-200.0,0.00014009,2]
[337165529,1725467433021,-190.924,0.00014009,2]
[337165530,1725467433030,-163.289,0.00014009,2]
[337165531,1725467433039,-297.134,0.00014009,2]
[337165532,1725467433050,-250.0,0.00014009,2]
[337165533,1725467433059,-229.876,0.00014009,2]
[337165534,1725467433070,-187.728,0.00014009,2]
[337165535,1725467433080,-261.908,0.00014009,2]
[337165536,1725467433090,-250.0,0.00014009,2]
[337165537,1725467433100,-263.892,0.00014009,2]
[337165538,1725467433109,-170.324,0.00014009,2]
[337165539,1725467433119,-201.272,0.00014009,2]
[337165540,1725467433129,-150.237,0.00014009,2]
[337165541,1725467433138,-600.0,0.00014064,2]
[337165542,1725467433148,-150.0,0.00014112,2]
[337165543,1725467433157,-600.0,0.00014136,2]
[337165544,1725467433167,-1574.80088284,0.000142,3]
[337165545,1725467433176,-247.497071,0.00014229,2]
[337165546,1725467433186,-185.622802,0.00014229,2]
[337165547,1725467433196,-150.0,0.00014237,2]
[337165548,1725467433213,-150.0,0.00014237,2]
[337165549,1725467433222,-150.0,0.00014237,2]
[337165550,1725467433234,-224.07039726,0.0001429,7]
[337165551,1725467433243,-2582.74630408,0.00014328,3]
[337165552,1725467433253,-150.0,0.00014362,2]
[337165553,1725467433262,-768.5,0.000144,2]
[337165554,1725467433271,-178.28,0.00014423,2]
[337165555,1725467433282,-5165.49260816,0.00014441,3]
[337165556,1725467433292,-31133.69993507,0.00014451,2]
[337165557,1725467433301,-185.622802,0.00014466,2]
[337165558,1725467433311,-286.05751971,0.00014481,2]
[337165559,1725467433320,-150.0,0.00014487,2]
[337165560,1725467433334,-600.0,0.000145,2]
[337165561,1725467433344,-6083.83579437,0.0001451,2]
[337165562,1725467433353,-150.03,0.00014515,2]
[337165563,1725467433362,-600.0,0.0001455,2]
[337165564,1725467433372,-600.0,0.0001455,2]
[337165565,1725467433382,-600.0,0.0001455,2]
[337165566,1725467433391,-600.0,0.0001455,2]
[337165567,1725467433400,-2582.74630408,0.00014553,3]
[337165568,1725467433409,-2582.74630408,0.00014563,3]
[337165569,1725467433419,-3742.16688504,0.00014569,2]
[337165570,1725467433428,-500.0,0.0001457,2]
[337165571,1725467433438,-700.0,0.0001457,2]
[337165572,1725467433448,-800.0,0.0001457,2]
[337165573,1725467433460,-700.0,0.0001457,2]
[337165574,1725467433469,-400.0,0.0001457,2]
[337165575,1725467433479,-700.0,0.0001457,2]
[337165576,1725467433488,-400.0,0.0001457,2]
[337165577,1725467433498,-1385.0,0.00014571,2]
[337165578,1725467433508,-1183.0,0.00014571,2]
[337165579,1725467433517,-1176.238,0.00014571,2]
[337165580,1725467433527,-158.013113,0.00014571,2]
[337165581,1725467433536,-201.0,0.00014573,2]
[337165582,1725467433545,-201.0,0.00014573,2]
[337165583,1725467433554,-201.0,0.00014573,2]
[337165584,1725467433563,-201.0,0.00014573,2]
[337165585,1725467433573,-208.0,0.00014573,2]
[337165586,1725467433582,-208.0,0.00014573,2]
[337165587,1725467433592,-208.0,0.00014573,2]
[337165588,1725467433601,-208.0,0.00014573,2]
[337165589,1725467433610,-208.0,0.00014573,2]
[337165590,1725467433620,-208.0,0.00014573,2]
[337165591,1725467433630,-208.0,0.00014573,2]
[337165592,1725467433639,-208.0,0.00014573,2]
[337165593,1725467433649,-208.0,0.00014573,2]
[337165594,1725467433658,-208.0,0.00014573,2]
[337165595,1725467433667,-208.0,0.00014573,2]
[337165596,1725467433677,-208.0,0.00014573,2]
[337165597,1725467433686,-208.0,0.00014573,2]
[337165598,1725467433696,-208.0,0.00014573,2]
[337165599,1725467433711,-208.0,0.00014573,2]
[337165600,1725467433720,-208.0,0.00014573,2]
[337165601,1725467433730,-150.0,0.00014612,2]
[337165602,1725467433740,-150.0,0.00014612,2]
[337165603,1725467433750,-177.37,0.00014633,2]
[337165604,1725467433760,-1000.0,0.00014633,2]
[337165605,1725467433770,-185.622802,0.00014703,2]
[337165606,1725467433779,-150.0,0.00014737,2]
[337165607,1725467433788,-25746.56384402,0.0001478,2]
[337165608,1725467433808,-2286.26554777,0.0001485,2]
[337165609,1725467433820,-150.0,0.00014861,2]
[337165610,1725467433830,-2008.9436914,0.00014889,2]
[337165611,1725467433840,-500.57,0.00014889,2]
[337165612,1725467433850,-2582.74630408,0.00014889,3]
[337165613,1725467433861,-10330.9852163,0.0001489,3]
[337165614,1725467433873,-8584.95961809,0.00014899,2]
[337165615,1725467433884,-151.967461,0.00014899,2]
[337165616,1725467433894,-151.0,0.00014899,2]
[337165617,1725467433905,-980.56498919,0.000149,2]
[337165618,1725467433915,-299.999999,0.000149,2]
[337165619,1725467433926,-444.31608222,0.000149,2]
[337165620,1725467433936,-35000.0,0.000149,2]
[337165621,1725467433946,-211.88152153,0.000149,2]
[337165622,1725467433959,-151.654733,0.000149,2]
[337165623,1725467433969,-151.245475,0.000149,2]
[337165624,1725467433980,-151.0,0.000149,2]
[337165625,1725467433990,-151.0,0.000149,2]
[337165626,1725467434000,-151.0,0.000149,2]
[337165627,1725467434011,-151.0,0.000149,2]
[337165628,1725467434021,-160.016412,0.000149,2]
[337165629,1725467434031,-151.0,0.000149,2]
[337165630,1725467434041,-151.0,0.000149,2]
[337165631,1725467434051,-151.0,0.000149,2]
[337165632,1725467434062,-294.737007,0.000149,2]
[337165633,1725467434072,-400.54720183,0.000149,2]
[337165634,1725467434082,-5729.48729045,0.000149,2]
[337165635,1725467434092,-151.0,0.000149,2]
[337165636,1725467434103,-154.182139,0.000149,2]
[337165637,1725467434113,-152.586257,0.000149,2]
[337165638,1725467434123,-151.0,0.000149,2]
[337165639,1725467434133,-151.0,0.000149,2]
[337165640,1725467434143,-151.0,0.000149,2]
[337165641,1725467434153,-151.0,0.000149,2]
[337165642,1725467434163,-151.0,0.000149,2]
[337165643,1725467434172,-151.0,0.000149,2]
[337165644,1725467434182,-151.0,0.000149,2]
[337165645,1725467434195,-151.0,0.000149,2]
[337165646,1725467434209,-335.0061,0.000149,2]
[337165647,1725467434219,-151.0,0.000149,2]
[337165648,1725467434229,-151.0,0.000149,2]
[337165649,1725467434240,-151.0,0.000149,2]
[337165650,1725467434249,-151.0,0.000149,2]
[337165651,1725467434258,-151.0,0.000149,2]
[337165652,1725467434270,-151.0,0.000149,2]
[337165653,1725467434280,-151.0,0.000149,2]
[337165654,1725467434289,-151.0,0.000149,2]
[337165655,1725467434298,-178.686208,0.000149,2]
[337165656,1725467434309,-684.298368,0.000149,2]
[337165657,1725467434318,-684.298368,0.000149,2]
[337165658,1725467434372,-151.0,0.000149,2]
[337165659,1725467434417,-151.0,0.000149,2]
[337165660,1725467434427,-151.0,0.000149,2]
[337165661,1725467434437,-151.0,0.000149,2]
[337165662,1725467434446,-153.198742,0.000149,2]
[337165663,1725467434459,-4526.6557334,0.000149,2]
[337165664,1725467434469,-330.0106221,0.000149,2]
[337165665,1725467434479,-10770.93820728,0.000149,2]
[337165666,1725467434488,-165.19422617,0.000149,2]
[337165667,1725467434530,-157.617451,0.000149,2]
[337165668,1725467434540,-157.617451,0.000149,2]
[337165669,1725467434550,-151.417233,0.000149,2]
[337165670,1725467434560,-998.61304144,0.000149,2]
[337165671,1725467434570,-433.513161,0.000149,2]
[337165672,1725467434580,-433.513161,0.000149,2]
[337165673,1725467434590,-150.0,0.00014911,2]
[337165674,1725467434601,-400.0,0.00014935,2]
[337165675,1725467434610,-1798.76397725,0.00014939,3]
[337165676,1725467434625,-783.98232683,0.00014939,3]
[337165677,1725467434635,-185.622802,0.0001494,2]
[337165678,1725467434644,-30971.0,0.00014949,3]
[337165679,1725467434654,-8607.73359244,0.00014969,2]
[337165680,1725467434664,-700.0,0.0001497,2]
[337165681,1725467434674,-400.0,0.0001497,2]
[337165682,1725467434683,-500.0,0.00014973,2]
[337165683,1725467434693,-523.37708839,0.00014973,2]
[337165684,1725467434703,-500.0,0.00014973,2]
[337165685,1725467434716,-150.74,0.0001498,2]
[337165686,1725467434726,-209.19186603,0.00014986,2]
[337165687,1725467434735,-203.65639789,0.00014986,2]
[337165688,1725467434745,-255.54376626,0.00014986,2]
[337165689,1725467434754,-151.0,0.00014989,2]
[337165690,1725467434764,-151.382929,0.00014989,2]
[337165691,1725467434773,-52124.22086969,0.00014989,2]
[337165692,1725467434783,-200.0,0.0001499,7]
[337165693,1725467434793,-192.872998,0.0001499,2]
[337165694,1725467435076,-151.0,0.0001499,2]
[337165695,1725467435085,-151.977013,0.0001499,2]
[337165696,1725467435094,-5904.7969654,0.0001499,2]
[337165697,1725467435105,-4605.2068613,0.0001499,2]
[337165698,1725467435114,-3305.6167572,0.0001499,2]
[337165699,1725467435123,-2006.0266532,0.0001499,2]
[337165700,1725467435133,-9385.1115048,0.0001499,2]
[337165701,1725467435142,-7319.5370051,0.0001499,2]
[337165702,1725467435153,-5253.9625055,0.0001499,2]
[337165703,1725467435162,-3188.3880059,0.0001499,2]
[337165704,1725467435172,-10730.17459207,0.0001499,2]
[337165705,1725467435221,-434.66746493,0.0001499,2]
[337165706,1725467435230,-2328.51345795,0.0001499,2]
[337165709,1725467438142,-4384.05143579,0.00013961,2]
[337165710,1725467438154,-4677.82886025,0.00013961,2]
[337165711,1725467438174,-305.07545363,0.00013961,2]
[337165712,1725467438407,-1427.2185654,0.00013961,2]
[337165713,1725467438430,-2672.82568493,0.00013961,2]
[337165714,1725467438440,-1144.0,0.00013961,2]
[337165715,1725467438449,-251.498546,0.00014795,2]
[337165716,1725467438463,-500.0,0.00014973,2]
[337165717,1725467438473,-6379.05219555,0.0001499,2]
[337165718,1725467438482,-6250.2892499,0.0001499,2]
[337165719,1725467438492,-3793.0128464,0.0001499,2]
[337165720,1725467438502,-10871.1059362,0.0001499,2]
[337165721,1725467438510,-8477.3076293,0.0001499,2]
[337165722,1725467438520,-6083.5093225,0.0001499,2]
[337165723,1725467438529,-3689.7110156,0.0001499,2]
[337165724,1725467438538,-109914.7545708,0.0001499,2]
[337165725,1725467438548,-85711.7199452,0.0001499,2]
[337165726,1725467438557,-61508.6853197,0.0001499,2]
[337165727,1725467438566,-37305.6506941,0.0001499,2]
[337165728,1725467438575,-151.0,0.0001499,2]
[337165729,1725467438585,-151.0,0.0001499,2]
[337165731,1725467438594,-151.0,0.0001499,2]
[337165732,1725467438603,-151.0,0.0001499,2]
[337165734,1725467438612,-151.0,0.0001499,2]
[337165735,1725467438621,-154.086954,0.0001499,2]
[337165736,1725467438630,-151.0,0.0001499,2]
[337165737,1725467438639,-151.0,0.0001499,2]
[337165738,1725467438648,-151.0,0.0001499,2]
[337165739,1725467438657,-243.824016,0.0001499,2]
[337165740,1725467438666,-151.0,0.0001499,2]
[337165741,1725467438675,-151.0,0.0001499,2]
[337165742,1725467438685,-151.0,0.0001499,2]
[337165743,1725467438695,-151.0,0.0001499,2]
[337165744,1725467438704,-151.0,0.0001499,2]
[337165745,1725467438719,-151.0,0.0001499,2]
[337165746,1725467438729,-151.0,0.0001499,2]
[337165747,1725467438738,-151.0,0.0001499,2]
[337165748,1725467438748,-151.0,0.0001499,2]
[337165749,1725467438757,-151.0,0.0001499,2]
[337165750,1725467438767,-151.0,0.0001499,2]
[337165751,1725467438776,-151.0,0.0001499,2]
[337165752,1725467438785,-151.0,0.0001499,2]
[337165753,1725467438795,-151.0,0.0001499,2]
[337165754,1725467438804,-151.0,0.0001499,2]
[337165755,1725467438813,-151.0,0.0001499,2]
[337165756,1725467438823,-151.0,0.0001499,2]
[337165757,1725467438832,-151.0,0.0001499,2]
[337165758,1725467438841,-684.298368,0.0001499,2]
[337165759,1725467438851,-684.298368,0.0001499,2]
[337165760,1725467438860,-684.298368,0.0001499,2]
[337165761,1725467438869,-684.298368,0.0001499,2]
[337165762,1725467438879,-151.0,0.0001499,2]
[337165763,1725467438888,-151.0,0.0001499,2]
[337165764,1725467438898,-151.0,0.0001499,2]
[337165765,1725467438907,-151.0,0.0001499,2]
[337165766,1725467438916,-151.0,0.0001499,2]
[337165767,1725467438925,-152.469856,0.0001499,2]
[337165768,1725467438935,-151.0,0.0001499,2]
[337165769,1725467438944,-151.0,0.0001499,2]
[337165770,1725467438954,-157.617451,0.0001499,2]
[337165771,1725467438968,-157.617451,0.0001499,2]
[337165772,1725467438977,-157.617451,0.0001499,2]
[337165773,1725467438987,-157.617451,0.0001499,2]
[337165774,1725467438998,-150.74,0.0001499,2]
[337165775,1725467439007,-150.74,0.0001499,2]
[337165776,1725467439017,-150.74,0.0001499,2]
[337165777,1725467439026,-150.74,0.0001499,2]
[337165778,1725467439036,-150.74,0.0001499,2]
[337165779,1725467439045,-433.513161,0.0001499,2]
[337165780,1725467439054,-433.513161,0.0001499,2]
[337165781,1725467439063,-433.513161,0.0001499,2]
[337165782,1725467439073,-433.513161,0.0001499,2]
[337165783,1725467439083,-500.0,0.00014999,2]
[337165784,1725467439093,-357.02364011,0.00014999,2]
[337165785,1725467439103,-1093.44168215,0.00014999,2]
[337165786,1725467439112,-202729.38533417,0.00014999,2]
[337165787,1725467439122,-150.0,0.00014999,2]
[337165788,1725467439132,-382.24526023,0.00014999,2]
[337165789,1725467439142,-1025.81002589,0.00014999,2]
[337165790,1725467439151,-1000.0,0.00014999,2]
[337165791,1725467439161,-1000.0,0.00014999,2]
[337165792,1725467439171,-1000.0,0.00014999,2]
[337165793,1725467439180,-1000.0,0.00014999,2]
[337165794,1725467439193,-1000.0,0.00014999,2]
[337165795,1725467439202,-1000.0,0.00014999,2]
[337165796,1725467439214,-1000.0,0.00014999,2]
[337165797,1725467439224,-1000.0,0.00014999,2]
[337165798,1725467439235,-1000.0,0.00014999,2]
[337165799,1725467439245,-1078.09317374,0.00014999,5]
[337165800,1725467439255,-1008.8556,0.00014999,2]
[337165801,1725467439265,-151.0,0.00014999,2]
[337165802,1725467439275,-151.0,0.00014999,2]
[337165803,1725467439285,-151.0,0.00014999,2]
[337165804,1725467439295,-151.0,0.00014999,2]
[337165805,1725467439305,-275.886587,0.00014999,2]
[337165806,1725467439314,-151.0,0.00014999,2]
[337165807,1725467439323,-249.770438,0.00014999,2]
[337165808,1725467439573,-151.0,0.00014999,2]
[337165809,1725467439583,-151.0,0.00014999,2]
[337165810,1725467439592,-254.253976,0.00014999,2]
[337165811,1725467439602,-151.0,0.00014999,2]
[337165812,1725467439611,-151.0,0.00014999,2]
[337165813,1725467439620,-162.81974,0.00014999,2]
[337165814,1725467439629,-151.0,0.00014999,2]
[337165815,1725467439638,-684.298368,0.00014999,2]
[337165816,1725467439647,-684.298368,0.00014999,2]
[337165817,1725467439657,-151.0,0.00014999,2]
[337165818,1725467439668,-151.0,0.00014999,2]
[337165819,1725467439679,-151.0,0.00014999,2]
[337165820,1725467439688,-157.617451,0.00014999,2]
[337165822,1725467439698,-157.617451,0.00014999,2]
[337165823,1725467439711,-433.513161,0.00014999,2]
[337165824,1725467439720,-433.513161,0.00014999,2]
[337165825,1725467439729,-1048609.75917756,0.00015,2]
[337165828,1725467440262,-135655.37606845,0.00015,2]
[337165830,1725467440274,-557.23617176,0.00015,2]
[337165833,1725467440288,-53001.03648123,0.00015,2]
[337165871,1725467440658,-262.94549514,0.00015,2]
[337165874,1725467440682,-1500.0,0.00015,2]
[337165879,1725467440724,-485.755,0.00015,2]
[337165913,1725467444902,-176.11046373,0.000149,2]
[337165914,1725467444911,-150.67691664,0.00015,2]
[337165915,1725467444922,-4638.51,0.00015,2]
[337165918,1725467445964,-669.58337309,0.00014004,2]
[337165919,1725467445988,-276.75,0.00014004,2]
[337165921,1725467612670,-11456.3055,0.00012691,2]
[337165922,1725467686623,400.0,0.00027,120]
[337165923,1725467702262,300.0,0.00025,60]
[337165924,1725467708327,150.0,0.00012591,2]
[337165925,1725467708348,150.0,0.00012591,2]
[337165926,1725467708372,150.0,0.00012591,2]
[337165927,1725467708394,150.0,0.00012591,2]
[337165928,1725467708415,150.0,0.00012591,2]
[337165929,1725467708435,150.0,0.00012591,2]
[337165930,1725467708457,99.616,0.00012591,2]
[337165933,1725467797460,1000.0,0.00027,120]
[337165934,1725467819378,278.3746449,0.00013333,15]
[337165935,1725467862407,150.0,0.00011089,2]
[337165936,1725467862428,150.0,0.00011089,2]
[337165937,1725467862451,124.46,0.00011089,2]
[337165939,1725468315281,150.0,0.00010959,2]
[337165940,1725468315306,108.78,0.00010959,2]
[337165941,1725468350141,150.0,0.00011402,2]
[337165942,1725468350164,150.0,0.00011402,2]
[337165943,1725468350189,103.23,0.00011402,2]
[337165946,1725468612409,191.51,0.00027,120]
[337165960,1725468632018,-195.0594553,0.00012907,2]
[337165962,1725468632028,-1053.409999,0.00013004,2]
[337165964,1725468632039,-250.0,0.00013288,2]
[337165965,1725468632049,-219.64451403,0.00013324,2]
[337165967,1725468632062,-1484.06315086,0.00013324,2]
[337165969,1725468632073,-9428.78267782,0.00013324,2]
[337165970,1725468632085,-569.99999994,0.00013324,2]
[337165971,1725468632097,-351.899999,0.00013324,2]
[337165972,1725468632109,-2043.93965835,0.00013324,2]
[337165973,1725468632119,-246.64,0.00013335,2]
[337165974,1725468632130,-2606.06245002,0.00013335,2]
[337165975,1725468632139,-1500.0,0.00013363,2]
[337165976,1725468632149,-286.62747822,0.00013391,2]
[337165977,1725468632174,-713.37252178,0.00013391,2]
[337165978,1725468632183,-150.0,0.00013488,2]
[337165979,1725468632193,-150.0,0.00013488,2]
[337165980,1725468632203,-150.00000001,0.00013488,2]
[337165981,1725468632212,-150.0,0.00013488,2]
[337165982,1725468632222,-150.13277722,0.00013488,2]
[337165983,1725468632232,-150.0,0.00013488,2]
[337165984,1725468632241,-150.0,0.00013488,2]
[337165985,1725468632251,-150.0467846,0.00013488,2]
[337165986,1725468632261,-150.0,0.00013488,2]
[337165987,1725468632270,-150.09773562,0.00013488,2]
[337165988,1725468632280,-150.13855944,0.00013488,2]
[337165989,1725468632294,-129.26146227,0.00013507,2]
[337165990,1725468632307,-20.73853773,0.00013507,2]
[337165991,1725468632316,-888.57134083,0.00013507,2]
[337165993,1725468632329,-636.79253411,0.00013507,2]
[337165996,1725468632340,-474.46635641,0.00013507,2]
[337165997,1725468632352,-740.97,0.00013507,2]
[337165998,1725468632364,-619.65174307,0.00013507,2]
[337165999,1725468632394,-7108.43953814,0.00013507,2]
[337166000,1725468632417,-603.91888408,0.00013507,2]
[337166001,1725468632430,-445.10286169,0.00013507,2]
[337166003,1725468632441,-315.0,0.00013507,2]
[337166005,1725468632453,-787.72537109,0.00013507,2]
[337166006,1725468632465,-753.09403611,0.00013507,2]
[337166007,1725468632477,-1697.0288294,0.00013507,2]
[337166008,1725468632488,-2862.03116841,0.00013507,2]
[337166009,1725468632499,-1381.95190557,0.00013507,2]
[337166010,1725468632510,-712.02367317,0.00013507,2]
[337166011,1725468632535,-566.87175792,0.00013507,2]
[337166012,1725468632555,-200.0,0.0001354,2]
[337166013,1725468632565,-218.79,0.00013541,2]
[337166014,1725468632577,-250.0,0.00013556,2]
[337166015,1725468632587,-785.03,0.00013582,2]
[337166016,1725468632596,-253.57,0.00013621,2]
[337166017,1725468632606,-150.0,0.00013624,2]
[337166018,1725468632615,-150.0,0.00013638,2]
[337166019,1725468632624,-305.21774208,0.00013645,2]
[337166020,1725468632636,-194.77225792,0.00013645,2]
[337166021,1725468632645,-403.23,0.00013666,2]
[337166022,1725468632656,-250.0,0.00013679,2]
[337166023,1725468632666,-500.0,0.00013699,2]
[337166024,1725468632675,-150.0,0.0001376,2]
[337166025,1725468632685,-150.0,0.00013787,2]
[337166026,1725468632695,-169.22,0.00013896,2]
[337166027,1725468632705,-150.0,0.00013896,2]
[337166028,1725468632714,-150.0,0.00013937,2]
[337166029,1725468632724,-150.0,0.00013937,2]
[337166030,1725468632734,-150.0,0.00013987,2]
[337166031,1725468632744,-150.0,0.00014,2]
[337166032,1725468632753,-313.94021327,0.00014004,2]
[337166033,1725468633713,-310.05978673,0.00014004,2]
[337166034,1725468633723,-1546.0,0.00014004,2]
[337166035,1725468633733,-447.0,0.00014004,2]
[337166036,1725468633744,-1260.0,0.00014004,2]
[337166037,1725468633754,-150.0,0.00014004,2]
[337166038,1725468633764,-810.0,0.00014004,2]
[337166039,1725468633774,-557.0,0.00014004,2]
[337166040,1725468633784,-931.0,0.00014004,2]
[337166041,1725468633798,-552.0,0.00014004,2]
[337166042,1725468633808,-537.63555221,0.00014004,2]
[337166043,1725468633825,-501.23538144,0.00014004,2]
[337166044,1725468633837,-860.12906635,0.00014004,2]
[337166045,1725468633847,-248.0,0.00014004,2]
[337166046,1725468633856,-805.0,0.00014004,2]
[337166047,1725468633866,-990.58400351,0.00014004,2]
[337166048,1725468633878,-143.41599649,0.00014004,2]
[337166049,1725468633887,-3278.14245518,0.00014004,2]
[337166050,1725468633899,-62.85754482,0.00014004,2]
[337166051,1725468633908,-1922.0,0.00014004,2]
[337166052,1725468633917,-183.78689115,0.00014004,2]
[337166053,1725468633929,-5671.21310885,0.00014004,2]
[337166054,1725468633938,-3733.0,0.00014004,2]
[337166055,1725468633947,-13467.0,0.00014004,2]
[337166056,1725468633957,-150.0,0.00014004,2]
[337166057,1725468633966,-1144.0,0.00014004,2]
[337166058,1725468633976,-150.0,0.00014004,2]
[337166059,1725468633985,-150.0,0.00014033,2]
[337166060,1725468633995,-150.0,0.00014087,2]
[337166061,1725468634004,-150.0,0.00014169,2]
[337166062,1725468634014,-150.0,0.00014237,2]
[337166063,1725468634023,-1000.0,0.000143,2]
[337166064,1725468634033,-851.0,0.000143,2]
[337166065,1725468634047,-358.0,0.000143,2]
[337166066,1725468634057,-150.0,0.00014305,2]
[337166067,1725468634067,-150.0,0.00014387,2]
[337166068,1725468634077,-862.87,0.000144,2]
[337166069,1725468634087,-150.0,0.00014441,2]
[337166070,1725468634097,-150.0,0.00014487,2]
[337166071,1725468634107,-150.0,0.000145,2]
[337166072,1725468634117,-150.0,0.00014537,2]
[337166073,1725468634127,-150.0,0.00014578,2]
[337166074,1725468634137,-421.15547501,0.00014595,2]
[337166075,1725468634146,-150.0,0.00014687,2]
[337166076,1725468634156,-150.0,0.00014714,2]
[337166077,1725468634167,-201.198837,0.00014795,2]
[337166078,1725468634177,-150.0,0.00014836,2]
[337166079,1725468634186,-150.0,0.0001485,2]
[337166080,1725468634196,-500.0,0.0001488,2]
[337166081,1725468634206,-200.0,0.0001488,2]
[337166082,1725468634216,-8500.0,0.00014882,2]
[337166083,1725468634226,-3300.42609377,0.00014886,2]
[337166084,1725468634235,-3300.42609368,0.00014888,2]
[337166085,1725468634246,-3300.42609368,0.00014889,2]
[337166086,1725468634256,-3300.42609368,0.00014891,2]
[337166087,1725468634266,-5927.72123361,0.00014891,2]
[337166088,1725468634283,-1339.32568212,0.00014891,2]
[337166089,1725468634300,-1232.95308427,0.00014891,2]
[337166090,1725468634310,-2803.79440049,0.00014892,2]
[337166091,1725468634321,-496.63169319,0.00014892,2]
[337166092,1725468634332,-110.10990433,0.00014894,2]
[337166101,1725468638095,-2506.77543946,0.00014894,2]
[337166102,1725468638111,-683.54074989,0.00014894,2]
[337166103,1725468638120,-330.0106221,0.00014894,2]
[337166104,1725468638130,-1945.30937991,0.00014895,2]
[337166106,1725468638141,-1355.11671377,0.00014895,2]
[337166108,1725468638151,-3300.42609368,0.00014897,2]
[337166110,1725468638161,-3300.42609368,0.00014898,2]
[337166111,1725468638170,-13.20303356,0.000149,2]
[337166112,1725468638182,-3458.69314524,0.000149,2]
[337166113,1725468638202,-1019.83248483,0.000149,2]
[337166114,1725468638214,-2613.31048833,0.000149,2]
[337166115,1725468638350,-1394.96084804,0.000149,2]
[337166116,1725468638432,-335.0061,0.000149,2]
[337166117,1725468638442,-3300.42609368,0.000149,2]
[337166118,1725468638452,-475.53909593,0.000149,2]
[337166119,1725468638462,-600.0,0.0001497,2]
[337166120,1725468638472,-337.415803,0.00014976,2]
[337166121,1725468638482,-500.0,0.00014976,2]